[Event "*** Titled Tuesday Blitz"]
[Site "Chess.com"]
[Date "2020.05.05"]
[Round "3"]
[White "madalin18"]
[Black "Lucas_Tomiello"]
[Result "0-1"]
[WhiteElo "2148"]
[BlackElo "2350"]
[TimeControl "180+1"]
[EndTime "10:30:01 PDT"]
[Termination "Lucas_Tomiello won by resignation"]

1. e4 {[%clk 0:03:00.9]} 1... c5 {[%clk 0:02:59.5]} 2. Nf3 {[%clk 0:03:00.8]}
2... d6 {[%clk 0:02:59.8]} 3. d4 {[%clk 0:03:01]} 3... cxd4 {[%clk 0:03:00.4]}
4. Nxd4 {[%clk 0:03:01.3]} 4... Nf6 {[%clk 0:03:00.8]} 5. Nc3 {[%clk 0:03:00.9]}
5... a6 {[%clk 0:03:01.3]} 6. Bg5 {[%clk 0:03:00.3]} 6... e6 {[%clk 0:03:00]} 7.
f4 {[%clk 0:02:59.9]} 7... Qc7 {[%clk 0:03:00.4]} 8. Qf3 {[%clk 0:02:58.6]} 8...
Be7 {[%clk 0:02:57]} 9. O-O-O {[%clk 0:02:57.7]} 9... Bd7 {[%clk 0:02:54.7]} 10.
g4 {[%clk 0:02:48.6]} 10... Nc6 {[%clk 0:02:54.4]} 11. Bxf6 {[%clk 0:02:31]}
11... gxf6 {[%clk 0:02:49.9]} 12. Bg2 {[%clk 0:02:06.9]} 12... O-O-O {[%clk
0:02:39.6]} 13. Rhe1 {[%clk 0:01:53.7]} 13... Kb8 {[%clk 0:02:38.1]} 14. Kb1
{[%clk 0:01:45.2]} 14... Rc8 {[%clk 0:02:37.4]} 15. Nxc6+ {[%clk 0:01:41.4]}
15... Bxc6 {[%clk 0:02:36.6]} 16. f5 {[%clk 0:01:41.3]} 16... h5 {[%clk
0:02:07.2]} 17. h3 {[%clk 0:01:40.6]} 17... hxg4 {[%clk 0:02:06.5]} 18. hxg4
{[%clk 0:01:40.4]} 18... Rcg8 {[%clk 0:01:47.4]} 19. Qe2 {[%clk 0:01:32.1]}
19... Rh4 {[%clk 0:01:31.8]} 20. Nd5 {[%clk 0:01:27.8]} 20... Bxd5 {[%clk
0:01:16.6]} 21. exd5 {[%clk 0:01:26.9]} 21... e5 {[%clk 0:01:14.3]} 22. Bf3
{[%clk 0:01:22.5]} 22... Qc5 {[%clk 0:01:06.4]} 23. Rd3 {[%clk 0:01:19.1]} 23...
Bd8 {[%clk 0:01:04.3]} 24. Rc3 {[%clk 0:01:16.2]} 24... Qd4 {[%clk 0:01:04.4]}
25. Rd1 {[%clk 0:01:14.8]} 25... Qf4 {[%clk 0:01:04.4]} 26. Rb3 {[%clk
0:01:12.3]} 26... Ka8 {[%clk 0:00:56.4]} 27. Qd3 {[%clk 0:01:00.8]} 27... Rh3
{[%clk 0:00:52.8]} 28. Qc3 {[%clk 0:00:57.2]} 28... Ba5 {[%clk 0:00:42.1]} 29.
Qxa5 {[%clk 0:00:52.8]} 29... Rxf3 {[%clk 0:00:41.8]} 30. Rb6 {[%clk 0:00:28.8]}
30... Qc4 {[%clk 0:00:35.6]} 31. b3 {[%clk 0:00:25]} 31... Qe2 {[%clk
0:00:24.1]} 32. Rd2 {[%clk 0:00:24.9]} 32... Qf1+ {[%clk 0:00:20.1]} 33. Kb2
{[%clk 0:00:24.5]} 33... Rxg4 {[%clk 0:00:20.6]} 34. Rd3 {[%clk 0:00:20.6]}
34... Rxd3 {[%clk 0:00:18.1]} 35. Rxa6+ {[%clk 0:00:19.6]} 35... bxa6 {[%clk
0:00:19]} 36. Qxa6+ {[%clk 0:00:19.6]} 36... Kb8 {[%clk 0:00:19.7]} 37. cxd3
{[%clk 0:00:18.4]} 37... Rg1 {[%clk 0:00:19.3]} 38. Qb6+ {[%clk 0:00:17.3]}
38... Kc8 {[%clk 0:00:19.8]} 39. Qc6+ {[%clk 0:00:17.3]} 39... Kd8 {[%clk
0:00:20.4]} 40. Qxd6+ {[%clk 0:00:17.5]} 40... Ke8 {[%clk 0:00:20.8]} 41. Qb8+
{[%clk 0:00:16.8]} 41... Ke7 {[%clk 0:00:20.7]} 42. Qc7+ {[%clk 0:00:15.9]}
42... Kf8 {[%clk 0:00:20.6]} 43. d6 {[%clk 0:00:13]} 43... Qa1+ {[%clk
0:00:17.7]} 44. Ka3 {[%clk 0:00:12.4]} 44... Rg2 {[%clk 0:00:17.6]} 45. d7
{[%clk 0:00:10.7]} 45... Rxa2+ {[%clk 0:00:17.4]} 46. Kb4 {[%clk 0:00:10.9]}
46... Qd4+ {[%clk 0:00:18.3]} 47. Kb5 {[%clk 0:00:10.6]} 47... Qd5+ {[%clk
0:00:15.4]} 48. Qc5+ {[%clk 0:00:09.9]} 48... Qxc5+ {[%clk 0:00:15]} 49. Kxc5
{[%clk 0:00:10.2]} 49... Ke7 {[%clk 0:00:15.9]} 50. Kc6 {[%clk 0:00:10.2]} 50...
Rc2+ {[%clk 0:00:15.9]} 51. Kb7 {[%clk 0:00:09.4]} 51... Kxd7 {[%clk 0:00:16.8]}
0-1

[Event "*** Titled Tuesday Blitz"]
[Site "Chess.com"]
[Date "2020.05.05"]
[Round "3"]
[White "Maghalashvili"]
[Black "Willychess95"]
[Result "1-0"]
[WhiteElo "2806"]
[BlackElo "2532"]
[TimeControl "180+1"]
[EndTime "10:30:02 PDT"]
[Termination "Maghalashvili won by checkmate"]

1. Nf3 {[%clk 0:03:00.9]} 1... Nf6 {[%clk 0:02:58.9]} 2. g3 {[%clk 0:03:01]}
2... b5 {[%clk 0:02:58.4]} 3. Bg2 {[%clk 0:02:59]} 3... Bb7 {[%clk 0:02:58.5]}
4. O-O {[%clk 0:02:59.9]} 4... e6 {[%clk 0:02:57.6]} 5. b3 {[%clk 0:03:00.1]}
5... g6 {[%clk 0:02:53.8]} 6. c4 {[%clk 0:02:59]} 6... b4 {[%clk 0:02:51]} 7.
Bb2 {[%clk 0:02:55.3]} 7... Bg7 {[%clk 0:02:50.6]} 8. d4 {[%clk 0:02:55.6]} 8...
O-O {[%clk 0:02:48.4]} 9. Nbd2 {[%clk 0:02:54.6]} 9... d6 {[%clk 0:02:40.8]} 10.
Qc2 {[%clk 0:02:53.8]} 10... Nbd7 {[%clk 0:02:34.1]} 11. e4 {[%clk 0:02:53.4]}
11... a5 {[%clk 0:02:34.1]} 12. e5 {[%clk 0:02:42.7]} 12... Ne8 {[%clk
0:02:32.4]} 13. Ne4 {[%clk 0:02:33.5]} 13... Qe7 {[%clk 0:02:27.4]} 14. Rfe1
{[%clk 0:02:16]} 14... d5 {[%clk 0:02:11.1]} 15. cxd5 {[%clk 0:02:15.3]} 15...
Bxd5 {[%clk 0:02:12]} 16. Nfd2 {[%clk 0:02:03.6]} 16... c6 {[%clk 0:02:04.9]}
17. Nc4 {[%clk 0:01:56.3]} 17... Nc7 {[%clk 0:02:03.1]} 18. a4 {[%clk
0:01:41.8]} 18... Rfb8 {[%clk 0:01:49.5]} 19. Rac1 {[%clk 0:01:39]} 19... Nb6
{[%clk 0:01:35.4]} 20. Ncd6 {[%clk 0:01:33.6]} 20... Ne8 {[%clk 0:01:27.6]} 21.
f4 {[%clk 0:01:19.4]} 21... Nc8 {[%clk 0:01:00.6]} 22. Nc4 {[%clk 0:01:14.8]}
22... Nb6 {[%clk 0:00:57.1]} 23. Ne3 {[%clk 0:01:11]} 23... Rc8 {[%clk
0:00:53.6]} 24. g4 {[%clk 0:00:57.8]} 24... f5 {[%clk 0:00:45.1]} 25. gxf5
{[%clk 0:00:51.7]} 25... gxf5 {[%clk 0:00:43.3]} 26. Nc5 {[%clk 0:00:50.6]}
26... Bh6 {[%clk 0:00:37.3]} 27. Qf2 {[%clk 0:00:44.8]} 27... Kh8 {[%clk
0:00:35.8]} 28. Kh1 {[%clk 0:00:44.9]} 28... Nc7 {[%clk 0:00:26.5]} 29. Rg1
{[%clk 0:00:37.9]} 29... Na6 {[%clk 0:00:23]} 30. Nd3 {[%clk 0:00:35.1]} 30...
Bxb3 {[%clk 0:00:15.6]} 31. Rxc6 {[%clk 0:00:33.5]} 31... Rxc6 {[%clk
0:00:12.6]} 32. Bxc6 {[%clk 0:00:34.4]} 32... Rc8 {[%clk 0:00:13]} 33. d5 {[%clk
0:00:33.4]} 33... Rxc6 {[%clk 0:00:08.3]} 34. dxc6 {[%clk 0:00:31.9]} 34... Nd5
{[%clk 0:00:08.9]} 35. Qg2 {[%clk 0:00:28.6]} 35... Qe8 {[%clk 0:00:06.9]} 36.
Nxd5 {[%clk 0:00:23.7]} 36... Bxd5 {[%clk 0:00:07.8]} 37. Qxd5 {[%clk
0:00:23.5]} 37... exd5 {[%clk 0:00:05.4]} 38. e6+ {[%clk 0:00:23.8]} 38... Bg7
{[%clk 0:00:06]} 39. Rxg7 {[%clk 0:00:22.3]} 39... d4 {[%clk 0:00:05.9]} 40.
Bxd4 {[%clk 0:00:11.3]} 40... Qxc6+ {[%clk 0:00:01.9]} 41. Rg2# {[%clk 0:00:11]}
1-0

[Event "*** Titled Tuesday Blitz"]
[Site "Chess.com"]
[Date "2020.05.05"]
[Round "3"]
[White "AsaHoffmann"]
[Black "tarantul1"]
[Result "0-1"]
[WhiteElo "2375"]
[BlackElo "2594"]
[TimeControl "180+1"]
[EndTime "10:30:02 PDT"]
[Termination "tarantul1 won on time"]

1. d4 {[%clk 0:02:57.2]} 1... Nf6 {[%clk 0:02:56.4]} 2. Bg5 {[%clk 0:02:56.2]}
2... d5 {[%clk 0:02:52.3]} 3. Nd2 {[%clk 0:02:54.8]} 3... Bd7 {[%clk 0:02:51.3]}
4. e3 {[%clk 0:02:53.5]} 4... e6 {[%clk 0:02:47.3]} 5. Bd3 {[%clk 0:02:52.2]}
5... c5 {[%clk 0:02:47.2]} 6. c3 {[%clk 0:02:51.9]} 6... Nc6 {[%clk 0:02:47.2]}
7. f4 {[%clk 0:02:51.4]} 7... Qc7 {[%clk 0:02:44]} 8. Ngf3 {[%clk 0:02:50.8]}
8... Be7 {[%clk 0:02:40.8]} 9. O-O {[%clk 0:02:49.5]} 9... h6 {[%clk 0:02:33.1]}
10. Bh4 {[%clk 0:02:46.1]} 10... Ng8 {[%clk 0:02:19.5]} 11. Bg3 {[%clk
0:02:39.9]} 11... Bd6 {[%clk 0:02:19.3]} 12. Ne5 {[%clk 0:02:36.9]} 12... Nge7
{[%clk 0:02:16.7]} 13. a3 {[%clk 0:02:31.2]} 13... O-O {[%clk 0:02:14.1]} 14.
Qh5 {[%clk 0:02:23.3]} 14... Be8 {[%clk 0:01:34.9]} 15. Qh3 {[%clk 0:02:19.1]}
15... Bd7 {[%clk 0:01:34.7]} 16. Ndf3 {[%clk 0:02:13.8]} 16... Rab8 {[%clk
0:01:31.6]} 17. Bh4 {[%clk 0:02:10.4]} 17... Bc8 {[%clk 0:01:28.9]} 18. Rac1
{[%clk 0:01:59.2]} 18... f6 {[%clk 0:01:28.6]} 19. Ng4 {[%clk 0:01:54]} 19... e5
{[%clk 0:01:17.9]} 20. fxe5 {[%clk 0:01:47.6]} 20... fxe5 {[%clk 0:01:11.8]} 21.
dxe5 {[%clk 0:01:30.4]} 21... Nxe5 {[%clk 0:01:10.6]} 22. Nfxe5 {[%clk
0:01:26.7]} 22... Rxf1+ {[%clk 0:01:11.5]} 23. Rxf1 {[%clk 0:01:25.8]} 23...
Bxe5 {[%clk 0:01:12.4]} 24. Qf3 {[%clk 0:01:18.7]} 24... Bxg4 {[%clk 0:00:48.5]}
25. Qxg4 {[%clk 0:01:16.5]} 25... Qd6 {[%clk 0:00:37.6]} 26. Bxe7 {[%clk
0:01:14]} 26... Qxe7 {[%clk 0:00:37.5]} 27. Qg6 {[%clk 0:01:13.1]} 27... Bf6
{[%clk 0:00:28.4]} 28. e4 {[%clk 0:01:07.4]} 28... c4 {[%clk 0:00:20]} 29. e5
{[%clk 0:00:55.7]} 29... Qxe5 {[%clk 0:00:16.7]} 30. Qh7+ {[%clk 0:00:41.6]}
30... Kf7 {[%clk 0:00:16.6]} 31. Bg6+ {[%clk 0:00:40.5]} 31... Ke7 {[%clk
0:00:16.2]} 32. Bc2 {[%clk 0:00:26.2]} 32... Kd6 {[%clk 0:00:14.9]} 33. Rd1
{[%clk 0:00:23.1]} 33... Re8 {[%clk 0:00:14.4]} 34. Qg6 {[%clk 0:00:22]} 34...
Qe3+ {[%clk 0:00:14.3]} 35. Kf1 {[%clk 0:00:19.7]} 35... Re5 {[%clk 0:00:04.9]}
36. Qg3 {[%clk 0:00:14.6]} 36... Qe2+ {[%clk 0:00:02.6]} 37. Kg1 {[%clk
0:00:13.9]} 37... Qxc2 {[%clk 0:00:03.5]} 38. Rf1 {[%clk 0:00:12.4]} 38... Qd3
{[%clk 0:00:03.2]} 39. Qf2 {[%clk 0:00:08.8]} 39... Qe3 {[%clk 0:00:03.3]} 40.
g3 {[%clk 0:00:08.1]} 40... Qxf2+ {[%clk 0:00:03.6]} 41. Rxf2 {[%clk 0:00:07.7]}
41... Ke6 {[%clk 0:00:04.5]} 42. Kg2 {[%clk 0:00:07.4]} 42... Re4 {[%clk
0:00:05.4]} 43. Kf3 {[%clk 0:00:07]} 43... Ke5 {[%clk 0:00:06.3]} 44. Rc2 {[%clk
0:00:05.9]} 44... d4 {[%clk 0:00:06.3]} 45. cxd4+ {[%clk 0:00:04.7]} 45... Rxd4
{[%clk 0:00:07.2]} 46. Re2+ {[%clk 0:00:04.4]} 46... Kd5 {[%clk 0:00:07.4]} 0-1

[Event "*** Titled Tuesday Blitz"]
[Site "Chess.com"]
[Date "2020.05.05"]
[Round "3"]
[White "TargetA"]
[Black "FeketeBarika"]
[Result "1-0"]
[WhiteElo "2527"]
[BlackElo "2293"]
[TimeControl "180+1"]
[EndTime "10:30:02 PDT"]
[Termination "TargetA won on time"]

1. c4 {[%clk 0:02:59.9]} 1... e6 {[%clk 0:03:00.9]} 2. d4 {[%clk 0:02:57.1]}
2... Nf6 {[%clk 0:03:01.8]} 3. Nc3 {[%clk 0:02:56.9]} 3... d5 {[%clk 0:03:02.7]}
4. e3 {[%clk 0:02:51.9]} 4... Be7 {[%clk 0:03:02.7]} 5. Nf3 {[%clk 0:02:51.9]}
5... O-O {[%clk 0:03:03]} 6. Bd3 {[%clk 0:02:49]} 6... Nbd7 {[%clk 0:03:01.4]}
7. O-O {[%clk 0:02:48]} 7... Re8 {[%clk 0:02:57.5]} 8. b3 {[%clk 0:02:44.2]}
8... c6 {[%clk 0:02:40.7]} 9. Bb2 {[%clk 0:02:43]} 9... Bd6 {[%clk 0:02:39.8]}
10. e4 {[%clk 0:02:37.1]} 10... dxe4 {[%clk 0:02:21.6]} 11. Nxe4 {[%clk
0:02:38]} 11... Nxe4 {[%clk 0:02:21.8]} 12. Bxe4 {[%clk 0:02:38.5]} 12... Nf6
{[%clk 0:02:22.5]} 13. Bc2 {[%clk 0:02:38.1]} 13... Bc7 {[%clk 0:02:21.9]} 14.
Ne5 {[%clk 0:02:34.7]} 14... Qe7 {[%clk 0:02:17]} 15. Qf3 {[%clk 0:02:31.2]}
15... Bd7 {[%clk 0:02:06.7]} 16. Rfe1 {[%clk 0:02:21.2]} 16... Rad8 {[%clk
0:01:59.1]} 17. h4 {[%clk 0:02:17.6]} 17... Bc8 {[%clk 0:01:57.3]} 18. h5 {[%clk
0:02:13.5]} 18... h6 {[%clk 0:01:56.4]} 19. g4 {[%clk 0:02:01.1]} 19... Nh7
{[%clk 0:01:52.6]} 20. Qxf7+ {[%clk 0:01:35.5]} 20... Qxf7 {[%clk 0:01:50.4]}
21. Nxf7 {[%clk 0:01:36.4]} 21... Rd7 {[%clk 0:01:20.5]} 22. Ne5 {[%clk
0:01:35.9]} 22... Bxe5 {[%clk 0:01:16.6]} 23. Rxe5 {[%clk 0:01:35.2]} 23... Ng5
{[%clk 0:01:13.6]} 24. Kg2 {[%clk 0:01:23.6]} 24... Rf8 {[%clk 0:01:10.7]} 25.
Re3 {[%clk 0:01:00.4]} 25... Rf4 {[%clk 0:01:07.6]} 26. f3 {[%clk 0:00:47.5]}
26... Rdf7 {[%clk 0:01:05.9]} 27. Rf1 {[%clk 0:00:47.9]} 27... Rf8 {[%clk
0:00:47.8]} 28. Kg3 {[%clk 0:00:45]} 28... e5 {[%clk 0:00:34]} 29. dxe5 {[%clk
0:00:32]} 29... Bxg4 {[%clk 0:00:33.4]} 30. Ba3 {[%clk 0:00:22.9]} 30... R8f7
{[%clk 0:00:22]} 31. fxg4 {[%clk 0:00:18.7]} 31... Rxf1 {[%clk 0:00:20.9]} 32.
e6 {[%clk 0:00:19]} 32... R1f3+ {[%clk 0:00:15]} 33. Rxf3 {[%clk 0:00:16.9]}
33... Rxf3+ {[%clk 0:00:15.9]} 34. Kg2 {[%clk 0:00:17.6]} 34... Re3 {[%clk
0:00:16.4]} 35. e7 {[%clk 0:00:17.3]} 35... Nf7 {[%clk 0:00:13.1]} 36. Bg6
{[%clk 0:00:17.1]} 36... b5 {[%clk 0:00:08.4]} 37. Bc5 {[%clk 0:00:15.4]} 37...
Re5 {[%clk 0:00:06.2]} 38. cxb5 {[%clk 0:00:15.1]} 38... cxb5 {[%clk 0:00:05.7]}
39. b4 {[%clk 0:00:15.5]} 39... a6 {[%clk 0:00:05.5]} 40. Kf3 {[%clk 0:00:15.1]}
40... Re1 {[%clk 0:00:04.2]} 41. Kf2 {[%clk 0:00:14.9]} 41... Re6 {[%clk
0:00:03.7]} 42. Kg3 {[%clk 0:00:13.6]} 42... Re5 {[%clk 0:00:03.6]} 43. Kf4
{[%clk 0:00:13.6]} 43... Re2 {[%clk 0:00:03.2]} 44. Be4 {[%clk 0:00:13.8]} 1-0

[Event "*** Titled Tuesday Blitz"]
[Site "Chess.com"]
[Date "2020.05.05"]
[Round "3"]
[White "grunbergmihai"]
[Black "Koksik_13"]
[Result "0-1"]
[WhiteElo "2382"]
[BlackElo "2597"]
[TimeControl "180+1"]
[EndTime "10:30:03 PDT"]
[Termination "Koksik_13 won by resignation"]

1. Nf3 {[%clk 0:03:00.9]} 1... d5 {[%clk 0:02:57]} 2. d4 {[%clk 0:02:59.2]} 2...
e6 {[%clk 0:02:55.1]} 3. c4 {[%clk 0:02:58.5]} 3... a6 {[%clk 0:02:54.7]} 4. e3
{[%clk 0:02:56.3]} 4... dxc4 {[%clk 0:02:54.2]} 5. Bxc4 {[%clk 0:02:56]} 5... b5
{[%clk 0:02:54.4]} 6. Bb3 {[%clk 0:02:55.9]} 6... Bb7 {[%clk 0:02:54.7]} 7. O-O
{[%clk 0:02:55.4]} 7... Nf6 {[%clk 0:02:54.4]} 8. a4 {[%clk 0:02:55]} 8... Nbd7
{[%clk 0:02:52.2]} 9. axb5 {[%clk 0:02:53.9]} 9... axb5 {[%clk 0:02:53.1]} 10.
Rxa8 {[%clk 0:02:52.7]} 10... Qxa8 {[%clk 0:02:54]} 11. Nc3 {[%clk 0:02:51]}
11... b4 {[%clk 0:02:53.3]} 12. Na4 {[%clk 0:02:30.1]} 12... Bd6 {[%clk
0:02:52.7]} 13. Ne1 {[%clk 0:02:16]} 13... O-O {[%clk 0:02:52.2]} 14. f3 {[%clk
0:02:15.7]} 14... Rd8 {[%clk 0:02:49.3]} 15. Nd3 {[%clk 0:02:15.3]} 15... Ba6
{[%clk 0:02:44.6]} 16. Qc2 {[%clk 0:02:11.1]} 16... Rc8 {[%clk 0:02:34.9]} 17.
Rd1 {[%clk 0:01:58.8]} 17... c5 {[%clk 0:02:21.7]} 18. Naxc5 {[%clk 0:01:52.9]}
18... Bxd3 {[%clk 0:02:13.7]} 19. Qxd3 {[%clk 0:01:51.5]} 19... Bxc5 {[%clk
0:02:13]} 20. dxc5 {[%clk 0:01:49.9]} 20... Nxc5 {[%clk 0:02:13.9]} 21. Qc4
{[%clk 0:01:41.6]} 21... Nd5 {[%clk 0:01:50.8]} 22. e4 {[%clk 0:01:13.9]} 22...
Nf6 {[%clk 0:01:30.4]} 23. Qxb4 {[%clk 0:01:07.2]} 23... h5 {[%clk 0:00:40.7]}
24. Bc4 {[%clk 0:01:01.4]} 24... h4 {[%clk 0:00:35.6]} 25. Be3 {[%clk
0:01:00.7]} 25... Ncd7 {[%clk 0:00:31.1]} 26. Bb5 {[%clk 0:00:54]} 26... Ne5
{[%clk 0:00:29]} 27. Bd4 {[%clk 0:00:46.6]} 27... Qb8 {[%clk 0:00:25.6]} 28. Qa5
{[%clk 0:00:32.5]} 28... h3 {[%clk 0:00:24.1]} 29. Be2 {[%clk 0:00:26]} 29...
Nc6 {[%clk 0:00:23.3]} 30. Qb6 {[%clk 0:00:24.7]} 30... Nxd4 {[%clk 0:00:22.7]}
31. Qxd4 {[%clk 0:00:24.2]} 31... hxg2 {[%clk 0:00:22.7]} 32. Kxg2 {[%clk
0:00:24.2]} 32... Nh5 {[%clk 0:00:22.8]} 33. e5 {[%clk 0:00:23.9]} 33... g6
{[%clk 0:00:16.7]} 34. f4 {[%clk 0:00:23.5]} 34... Ng7 {[%clk 0:00:16.3]} 35.
Bd3 {[%clk 0:00:22.9]} 35... Qb3 {[%clk 0:00:14.4]} 36. Rd2 {[%clk 0:00:20.7]}
36... Nh5 {[%clk 0:00:14]} 37. Be2 {[%clk 0:00:19.1]} 37... Ng7 {[%clk
0:00:13.6]} 38. Bg4 {[%clk 0:00:18.7]} 38... Qa2 {[%clk 0:00:11.6]} 39. h3
{[%clk 0:00:17.4]} 39... Qb1 {[%clk 0:00:11.4]} 40. Be2 {[%clk 0:00:14.8]} 40...
Nf5 {[%clk 0:00:10.8]} 41. Qd3 {[%clk 0:00:13.3]} 41... Qe1 {[%clk 0:00:09.9]}
42. Bg4 {[%clk 0:00:09.4]} 42... Nh4+ {[%clk 0:00:09.2]} 43. Kh2 {[%clk
0:00:08.6]} 43... Rc1 {[%clk 0:00:09.5]} 44. Rd1 {[%clk 0:00:08.4]} 44... Qf2+
{[%clk 0:00:09]} 0-1

[Event "*** Titled Tuesday Blitz"]
[Site "Chess.com"]
[Date "2020.05.05"]
[Round "3"]
[White "Biranidun"]
[Black "Stormeman100100"]
[Result "0-1"]
[WhiteElo "2713"]
[BlackElo "2539"]
[TimeControl "180+1"]
[EndTime "10:30:04 PDT"]
[Termination "Stormeman100100 won on time"]

1. e4 {[%clk 0:03:00.9]} 1... c5 {[%clk 0:02:54.8]} 2. Nf3 {[%clk 0:02:59.4]}
2... d6 {[%clk 0:02:51.8]} 3. d4 {[%clk 0:02:59.5]} 3... cxd4 {[%clk 0:02:52.7]}
4. Nxd4 {[%clk 0:03:00.4]} 4... Nf6 {[%clk 0:02:52.6]} 5. Nc3 {[%clk 0:03:00.7]}
5... a6 {[%clk 0:02:52.6]} 6. f3 {[%clk 0:03:01.2]} 6... e5 {[%clk 0:02:50.2]}
7. Nb3 {[%clk 0:03:01.4]} 7... Be7 {[%clk 0:02:50.1]} 8. Be3 {[%clk 0:03:01.3]}
8... O-O {[%clk 0:02:49.3]} 9. Qd2 {[%clk 0:03:01.3]} 9... Be6 {[%clk
0:02:49.2]} 10. O-O-O {[%clk 0:03:01.3]} 10... Nbd7 {[%clk 0:02:47.9]} 11. g4
{[%clk 0:03:01.4]} 11... b5 {[%clk 0:02:47.9]} 12. g5 {[%clk 0:03:01.3]} 12...
Nh5 {[%clk 0:02:45.6]} 13. Kb1 {[%clk 0:03:01.2]} 13... b4 {[%clk 0:02:35.3]}
14. Nd5 {[%clk 0:02:58.6]} 14... Bxd5 {[%clk 0:02:34.6]} 15. Qxd5 {[%clk
0:02:59.4]} 15... a5 {[%clk 0:02:34]} 16. Rg1 {[%clk 0:02:35.6]} 16... a4 {[%clk
0:02:29.1]} 17. Nd2 {[%clk 0:02:30.8]} 17... Nf4 {[%clk 0:01:59.9]} 18. Bxf4
{[%clk 0:02:29.1]} 18... exf4 {[%clk 0:02:00.8]} 19. Nc4 {[%clk 0:02:26.3]}
19... Nb6 {[%clk 0:01:59.1]} 20. Nxb6 {[%clk 0:02:24.2]} 20... Qxb6 {[%clk
0:02:00]} 21. Bc4 {[%clk 0:02:23.7]} 21... Ra5 {[%clk 0:01:51.4]} 22. Qd3 {[%clk
0:01:56.7]} 22... Rxg5 {[%clk 0:01:17.1]} 23. Rxg5 {[%clk 0:01:55.1]} 23... Bxg5
{[%clk 0:01:18]} 24. b3 {[%clk 0:01:30.1]} 24... axb3 {[%clk 0:01:08.2]} 25.
cxb3 {[%clk 0:01:28.7]} 25... Bf6 {[%clk 0:01:06.8]} 26. Qxd6 {[%clk 0:01:16.5]}
26... Qe3 {[%clk 0:00:52.9]} 27. Qd3 {[%clk 0:01:00.7]} 27... Qf2 {[%clk
0:00:44]} 28. Qe2 {[%clk 0:01:00.5]} 28... Qc5 {[%clk 0:00:36.9]} 29. Rd5 {[%clk
0:00:50.5]} 29... Qg1+ {[%clk 0:00:35.6]} 30. Rd1 {[%clk 0:00:45.1]} 30... Qg5
{[%clk 0:00:23.6]} 31. Rd5 {[%clk 0:00:41.2]} 31... Qg1+ {[%clk 0:00:23.1]} 32.
Qd1 {[%clk 0:00:29.9]} 32... Qxh2 {[%clk 0:00:18.5]} 33. e5 {[%clk 0:00:30.3]}
33... Bh4 {[%clk 0:00:13.6]} 34. Rd7 {[%clk 0:00:28]} 34... Qf2 {[%clk
0:00:06.1]} 35. Qd5 {[%clk 0:00:08.1]} 35... Qe1+ {[%clk 0:00:05.7]} 36. Qd1
{[%clk 0:00:05.9]} 36... Qxe5 {[%clk 0:00:06.1]} 37. Rd5 {[%clk 0:00:03.6]}
37... Qe7 {[%clk 0:00:05.3]} 38. Rd4 {[%clk 0:00:02.2]} 38... Bf6 {[%clk
0:00:04.8]} 39. Re4 {[%clk 0:00:02.3]} 39... Qc5 {[%clk 0:00:04.5]} 40. Qd5
{[%clk 0:00:02.2]} 40... Qg1+ {[%clk 0:00:04]} 41. Kc2 {[%clk 0:00:02.8]} 41...
Qf2+ {[%clk 0:00:04]} 42. Be2 {[%clk 0:00:01.7]} 42... Qb6 {[%clk 0:00:04.1]}
43. Qc4 {[%clk 0:00:01.9]} 43... Qb8 {[%clk 0:00:03.1]} 44. Kd1 {[%clk
0:00:01.1]} 44... Rc8 {[%clk 0:00:03.7]} 0-1

[Event "*** Titled Tuesday Blitz"]
[Site "Chess.com"]
[Date "2020.05.05"]
[Round "3"]
[White "ShahMatKanal"]
[Black "mirochka"]
[Result "1-0"]
[WhiteElo "2403"]
[BlackElo "2176"]
[TimeControl "180+1"]
[EndTime "10:30:04 PDT"]
[Termination "ShahMatKanal won on time"]

1. d4 {[%clk 0:03:00.9]} 1... Nf6 {[%clk 0:02:59.2]} 2. c4 {[%clk 0:03:00.8]}
2... e6 {[%clk 0:02:58.8]} 3. a3 {[%clk 0:03:01.4]} 3... d5 {[%clk 0:02:58.9]}
4. cxd5 {[%clk 0:03:00.9]} 4... exd5 {[%clk 0:02:58.9]} 5. Nc3 {[%clk
0:03:01.3]} 5... c6 {[%clk 0:02:53.6]} 6. Bg5 {[%clk 0:02:59.3]} 6... Bf5 {[%clk
0:02:52.4]} 7. e3 {[%clk 0:02:58]} 7... Be7 {[%clk 0:02:50.1]} 8. Bd3 {[%clk
0:02:57.8]} 8... Bg6 {[%clk 0:02:25.8]} 9. Nge2 {[%clk 0:02:55.7]} 9... O-O
{[%clk 0:02:24.1]} 10. O-O {[%clk 0:02:52]} 10... Nbd7 {[%clk 0:02:22.6]} 11.
Ng3 {[%clk 0:02:41.5]} 11... Bxd3 {[%clk 0:02:08.8]} 12. Qxd3 {[%clk 0:02:41]}
12... g6 {[%clk 0:02:04.6]} 13. Rae1 {[%clk 0:02:34.9]} 13... Re8 {[%clk
0:02:04]} 14. f3 {[%clk 0:02:32.2]} 14... Qb6 {[%clk 0:01:58.9]} 15. Na4 {[%clk
0:02:24.3]} 15... Qa5 {[%clk 0:01:54.6]} 16. Nc3 {[%clk 0:02:20.6]} 16... Rad8
{[%clk 0:01:53.2]} 17. Re2 {[%clk 0:02:13.4]} 17... b5 {[%clk 0:01:32.5]} 18.
Kh1 {[%clk 0:02:00.7]} 18... Qb6 {[%clk 0:01:32]} 19. b4 {[%clk 0:01:56.4]}
19... a5 {[%clk 0:01:30.5]} 20. Rb1 {[%clk 0:01:52.2]} 20... axb4 {[%clk
0:01:25.7]} 21. axb4 {[%clk 0:01:53.1]} 21... Ra8 {[%clk 0:01:25.1]} 22. e4
{[%clk 0:01:48.7]} 22... dxe4 {[%clk 0:01:21.1]} 23. fxe4 {[%clk 0:01:48]} 23...
Ra3 {[%clk 0:01:15.6]} 24. Qd2 {[%clk 0:01:28.5]} 24... Qa6 {[%clk 0:01:10.2]}
25. h4 {[%clk 0:01:13.8]} 25... Nb6 {[%clk 0:01:08.8]} 26. e5 {[%clk 0:01:06.1]}
26... Nfd5 {[%clk 0:01:03.7]} 27. Nxd5 {[%clk 0:01:05.3]} 27... Nxd5 {[%clk
0:01:01.9]} 28. Bxe7 {[%clk 0:01:04.2]} 28... Rxe7 {[%clk 0:00:59.5]} 29. Ne4
{[%clk 0:00:59]} 29... Kg7 {[%clk 0:00:47.3]} 30. Nc5 {[%clk 0:00:32.2]} 30...
Qa7 {[%clk 0:00:44.1]} 31. e6 {[%clk 0:00:31.7]} 31... f6 {[%clk 0:00:38.9]} 32.
h5 {[%clk 0:00:30]} 32... Qc7 {[%clk 0:00:35.1]} 33. Rf1 {[%clk 0:00:24]} 33...
Qg3 {[%clk 0:00:31]} 34. Re4 {[%clk 0:00:17.3]} 34... Rd3 {[%clk 0:00:19.5]} 35.
Qxd3 {[%clk 0:00:11.3]} 35... Qg5 {[%clk 0:00:13.5]} 36. Qh3 {[%clk 0:00:09.2]}
36... f5 {[%clk 0:00:11]} 37. Re5 {[%clk 0:00:07.3]} 37... Nf6 {[%clk
0:00:08.1]} 38. h6+ {[%clk 0:00:06.8]} 38... Kg8 {[%clk 0:00:07.3]} 39. Nd7
{[%clk 0:00:06.5]} 39... Nxd7 {[%clk 0:00:04]} 40. exd7 {[%clk 0:00:06.5]} 40...
Rxd7 {[%clk 0:00:04.5]} 41. Qb3+ {[%clk 0:00:05.4]} 41... Kf8 {[%clk 0:00:03.6]}
42. Rfe1 {[%clk 0:00:04.3]} 42... Rd8 {[%clk 0:00:02]} 43. Qe6 {[%clk
0:00:03.2]} 1-0